bitfinex/quotes_BTCUSD_20260104
["timestamp","ask_amount","ask_price","bid_price","bid_amount"]
[1767547948851,0.01094918,91331.0,91327.0,0.04660118]
[1767547949277,0.06569443,91332.0,91327.0,0.04660118]
[1767547949510,0.05474593,91331.0,91327.0,0.04660118]
[1767547949670,0.01094882,91334.0,91327.0,0.04660118]
[1767547949671,0.0041397,91329.0,91327.0,0.04660118]
[1767547949869,0.0041397,91329.0,91328.0,0.04660118]
[1767547950073,0.01094786,91342.0,91331.0,0.05755036]
[1767547950274,0.01094786,91342.0,91336.0,0.04660118]
[1767547950472,0.01094822,91339.0,91336.0,0.04560218]
[1767547950712,0.06568966,91339.0,91336.0,0.04560218]
[1767547951348,0.05474201,91338.0,91336.0,0.04560218]
[1767547951621,0.06568966,91339.0,91336.0,0.04560218]
[1767547952789,0.01094798,91341.0,91339.0,0.000999]
[1767547952976,0.06568733,91342.0,91339.0,0.000999]
[1767547953384,0.01094798,91341.0,91337.0,0.04878544]
[1767547954341,0.01094786,91342.0,91337.0,0.0597339]
[1767547954803,0.03286774,91343.0,91339.0,0.04888404]
[1767547955016,0.01094786,91342.0,91339.0,0.04888404]
[1767547955537,0.06568746,91342.0,91339.0,0.04888404]
[1767547956179,0.01094786,91342.0,91339.0,0.04888404]
[1767547956551,0.01094786,91342.0,91339.0,0.04883877]
[1767547957768,0.06568728,91342.0,91339.0,0.04883877]
[1767547959776,0.01094786,91342.0,91339.0,0.04883877]
[1767547960526,0.02192,91343.0,91339.0,0.04883877]
[1767547960704,0.03286774,91343.0,91339.0,0.04883877]
[1767547961055,0.01094786,91342.0,91339.0,0.04883877]
[1767547961621,0.08760652,91343.0,91339.0,0.04883877]
[1767547962051,0.0656872,91342.0,91339.0,0.04883877]
[1767547962457,0.01094786,91342.0,91339.0,0.04883877]
[1767547963978,0.0109481,91340.0,91335.0,0.05983274]
[1767547964180,0.08760655,91343.0,91338.0,0.05983238]
[1767547964519,0.01085914,91342.0,91338.0,0.04888404]
[1767547965140,0.01094798,91341.0,91338.0,0.04888404]
[1767547965348,0.06559858,91342.0,91338.0,0.04888404]
[1767547966195,0.01085914,91342.0,91338.0,0.04888404]
[1767547966398,0.03286774,91343.0,91338.0,0.05983238]
[1767547966608,0.03286774,91343.0,91338.0,0.04888404]
[1767547966609,0.01094786,91342.0,91338.0,0.04888404]
[1767547966813,0.01085913,91342.0,91338.0,0.04888404]
[1767547967732,0.01094786,91342.0,91338.0,0.04888404]
[1767547967938,0.08760668,91343.0,91338.0,0.04888404]
[1767547968589,0.01094798,91341.0,91336.0,0.04888404]
[1767547968791,0.0109481,91340.0,91336.0,0.04888404]
[1767547968991,0.01094798,91341.0,91336.0,0.04888404]
[1767547969277,0.01094798,91341.0,91336.0,0.05983262]
[1767547969618,0.06568736,91342.0,91337.0,0.01094846]
[1767547969818,0.06568736,91342.0,91337.0,0.05978723]
[1767547970016,0.01094798,91341.0,91337.0,0.04888404]
[1767547970655,0.08760763,91343.0,91337.0,0.11457448]
[1767547971141,0.01094786,91342.0,91337.0,0.0598325]
[1767547971460,0.06568735,91342.0,91337.0,0.0598325]
[1767547971823,0.01094798,91341.0,91337.0,0.04888404]
[1767547972030,0.03286774,91343.0,91337.0,0.0598325]
[1767547972770,0.01094786,91342.0,91337.0,0.11457476]
[1767547972950,0.03286774,91343.0,91337.0,0.11457476]
[1767547973104,0.01094786,91342.0,91337.0,0.11457476]
[1767547973282,0.08760702,91343.0,91338.0,0.01094834]
[1767547973491,0.02192,91343.0,91338.0,0.0656897]
[1767547973716,0.02192,91343.0,91338.0,0.11457374]
[1767547974344,0.02192,91343.0,91339.0,0.01094822]
[1767547975110,0.03286774,91343.0,91338.0,0.11457374]
[1767547975276,0.03286774,91343.0,91338.0,0.04888404]
[1767547975277,0.01094786,91342.0,91338.0,0.04888404]
[1767547975482,0.03286774,91343.0,91338.0,0.05983238]
[1767547975705,0.03286774,91343.0,91339.0,0.01094822]
[1767547975706,0.02192,91343.0,91339.0,0.01094822]
[1767547976083,0.02192,91343.0,91338.0,0.11457399]
[1767547977353,0.02192,91343.0,91339.0,0.01094822]
[1767547977566,0.03286774,91343.0,91338.0,0.11457399]
[1767547977796,0.01094786,91342.0,91338.0,0.04888404]
[1767547977999,0.03286774,91343.0,91338.0,0.05983238]
[1767547978412,0.01094786,91342.0,91338.0,0.04888404]
[1767547978592,0.02192,91343.0,91339.0,0.01094822]
[1767547979806,0.02192,91343.0,91339.0,0.06568919]
[1767547979975,0.02192,91343.0,91340.0,0.0109481]
[1767547980170,0.02192,91343.0,91339.0,0.06568929]
[1767547980569,0.020921,91343.0,91340.0,0.0109481]
[1767547980794,0.020921,91343.0,91340.0,0.06568811]
[1767547981013,0.02581045,91342.0,91340.0,0.06568811]
[1767547981593,0.02581045,91342.0,91340.0,0.0109481]
[1767547982005,0.02581045,91342.0,91340.0,0.06568862]
[1767547982387,0.02581045,91342.0,91339.0,0.01094822]
[1767547982607,0.02581045,91342.0,91338.0,0.06568994]
[1767547983218,0.02581045,91342.0,91338.0,0.01094834]
[1767547983620,0.02581045,91341.0,91337.0,0.06569028]
[1767547984079,0.02581045,91341.0,91338.0,0.01094834]
[1767547984455,0.02581045,91341.0,91337.0,0.06569028]
[1767547984787,0.02581045,91341.0,91337.0,0.01094846]
[1767547985031,0.02581045,91341.0,91336.0,0.01094858]
[1767547985199,0.01094798,91341.0,91336.0,0.11361834]
[1767547985406,0.06568796,91341.0,91337.0,0.0479269]
[1767547985872,0.01094786,91342.0,91337.0,0.05887536]
[1767547986064,0.01094798,91341.0,91337.0,0.0479269]
[1767547986335,0.06568792,91341.0,91337.0,0.0479269]
[1767547986548,0.01094798,91341.0,91337.0,0.0479269]
[1767547987509,0.06568725,91342.0,91337.0,0.05887536]
[1767547988111,0.03186874,91343.0,91339.0,0.0479269]
[1767547988670,0.020921,91343.0,91339.0,0.0479269]
[1767547988873,0.03186874,91343.0,91339.0,0.0479269]
[1767547989306,0.08660764,91343.0,91339.0,0.0479269]
[1767547989453,0.01094786,91342.0,91339.0,0.0479269]
[1767547989654,0.08660764,91343.0,91339.0,0.0479269]
[1767547989853,0.03186874,91343.0,91339.0,0.0479269]
[1767547990314,0.020921,91343.0,91339.0,0.05887512]
[1767547990458,0.03186874,91343.0,91339.0,0.05887512]
[1767547990660,0.08660747,91343.0,91339.0,0.0479269]
[1767547990864,0.01094786,91342.0,91339.0,0.0479269]
[1767547991074,0.03186874,91343.0,91339.0,0.0479269]
[1767547991887,0.03186874,91343.0,91339.0,0.05887512]
[1767547992088,0.03186874,91343.0,91339.0,0.0479269]
[1767547992616,0.01094786,91342.0,91339.0,0.0479269]
[1767547993148,0.03186874,91343.0,91339.0,0.0479269]
[1767547994488,0.020921,91343.0,91339.0,0.05887512]
[1767547994617,0.03186874,91343.0,91339.0,0.0479269]
[1767547994993,0.08660765,91343.0,91339.0,0.0479269]
[1767547995197,0.03186874,91343.0,91339.0,0.0479269]
[1767547995741,0.020921,91343.0,91339.0,0.11361615]
[1767547996406,0.020921,91343.0,91339.0,0.05887512]
[1767547996582,0.020921,91343.0,91337.0,0.00463426]
[1767547996952,0.020921,91343.0,91339.0,0.05474108]
[1767547997560,0.08020171,91343.0,91339.0,0.01094822]
[1767547997764,0.04833297,91342.0,91339.0,0.05474104]
[1767547998208,0.020921,91343.0,91339.0,0.0479269]
[1767547998751,0.020921,91343.0,91339.0,0.10266796]
[1767547998890,0.03186874,91343.0,91339.0,0.05887512]
[1767547999090,0.020921,91343.0,91339.0,0.05887512]
[1767547999529,0.03186874,91343.0,91339.0,0.0479269]
[1767547999728,0.020921,91343.0,91339.0,0.05887512]
[1767548000380,0.0866075,91343.0,91339.0,0.0479269]
[1767548001657,0.0866075,91343.0,91338.0,0.01094834]
[1767548001994,0.01094786,91342.0,91338.0,0.01094834]
[1767548002156,0.0866075,91343.0,91338.0,0.01094834]
[1767548002993,0.000999,91338.0,91336.0,0.0479269]
[1767548003169,0.03186874,91343.0,91338.0,0.05887524]
[1767548003372,0.020921,91343.0,91340.0,0.0479269]
[1767548003596,0.020921,91343.0,91340.0,0.058875]
[1767548003800,0.019922,91343.0,91341.0,0.0479269]
[1767548006610,0.019922,91343.0,91341.0,0.04788163]
[1767548008362,0.02469289,91342.0,91340.0,0.0109481]
[1767548008705,0.0109469,91350.0,91342.0,0.06568719]
[1767548008957,0.01094702,91349.0,91343.0,0.06568593]
[1767548009180,0.02188,91350.0,91347.0,0.01094726]
[1767548009399,0.02188,91350.0,91349.0,0.05473513]
[1767548009852,0.06567825,91356.0,91349.0,0.05473513]
[1767548010024,0.06567787,91355.0,91350.0,0.0109469]
[1767548010973,0.06567825,91356.0,91350.0,0.06014215]
[1767548011389,0.06567825,91356.0,91351.0,0.04919525]
[1767548011799,0.0109463,91355.0,91351.0,0.06014203]
[1767548012455,0.02192,91357.0,91352.0,0.06014191]
[1767548012662,0.03286606,91357.0,91353.0,0.04919525]
[1767548013053,0.03286606,91357.0,91353.0,0.06014179]
[1767548013642,0.02469289,91361.0,91358.0,0.01094594]
[1767548013842,0.02569189,91358.0,91357.0,0.01094606]
[1767548014177,0.04661289,91363.0,91360.0,0.0109457]
[1767548014320,0.02192,91363.0,91359.0,0.06567452]
[1767548014526,0.02192,91363.0,91360.0,0.0109457]
[1767548014931,0.02192,91363.0,91360.0,0.06567423]
[1767548015138,0.02192,91363.0,91361.0,0.05472792]
[1767548015500,0.02192,91363.0,91360.0,0.06567423]
[1767548016781,0.03563835,91362.0,91357.0,0.01094606]
[1767548016994,0.03563835,91362.0,91358.0,0.01094594]
[1767548017280,0.03563835,91362.0,91357.0,0.06567628]
[1767548017433,0.01094546,91362.0,91357.0,0.06567628]
[1767548017849,0.01094558,91361.0,91357.0,0.00994706]
[1767548018062,0.01094558,91361.0,91356.0,0.06567601]
[1767548018258,0.01094558,91361.0,91357.0,0.04615742]
[1767548018459,0.01094558,91361.0,91356.0,0.01094618]
[1767548018799,0.01094558,91361.0,91356.0,0.06567689]
[1767548019172,0.01094558,91361.0,91356.0,0.11183431]
[1767548019513,0.06567424,91360.0,91353.0,0.05473271]
[1767548019691,0.01094582,91359.0,91354.0,0.06567832]
[1767548019907,0.06567497,91359.0,91354.0,0.06567832]
[1767548020105,0.06567424,91360.0,91354.0,0.06567832]
[1767548020435,0.06567424,91360.0,91355.0,0.0109463]
[1767548020638,0.0109457,91360.0,91355.0,0.06567746]
[1767548020970,0.05472852,91361.0,91356.0,0.01094618]
[1767548021155,0.0656741,91361.0,91355.0,0.06567749]
[1767548021356,0.0109457,91360.0,91355.0,0.06567749]
[1767548021495,0.0656741,91361.0,91356.0,0.01094618]
[1767548021902,0.0109457,91360.0,91356.0,0.01094618]
[1767548022154,0.0109457,91360.0,91355.0,0.06567749]
[1767548022602,0.0109457,91360.0,91356.0,0.01094618]
[1767548022912,0.06567434,91360.0,91355.0,0.0109463]
[1767548023036,0.0109457,91360.0,91355.0,0.06567782]
[1767548023237,0.0109457,91360.0,91355.0,0.06567783]
[1767548023458,0.06567514,91359.0,91354.0,0.06567807]
[1767548023635,0.0109457,91360.0,91355.0,0.06567777]
[1767548024091,0.0109457,91360.0,91354.0,0.01094642]
[1767548024319,0.06567474,91360.0,91355.0,0.0109463]
[1767548024755,0.01094582,91359.0,91354.0,0.06567838]
[1767548024995,0.06567504,91359.0,91354.0,0.06567838]
[1767548025222,0.06567468,91360.0,91355.0,0.06567771]
[1767548025666,0.06567468,91360.0,91355.0,0.0109463]
[1767548025845,0.01094582,91359.0,91354.0,0.06567838]
[1767548026054,0.06567458,91361.0,91356.0,0.05473091]
[1767548026389,0.06567458,91361.0,91355.0,0.06567739]
[1767548026994,0.06567476,91360.0,91355.0,0.06567778]
[1767548027195,0.01094582,91359.0,91355.0,0.0109463]
[1767548027400,0.06567476,91360.0,91355.0,0.06567776]
[1767548027662,0.0109457,91360.0,91356.0,0.01094618]
[1767548027859,0.05488005,91364.0,91360.0,0.04615742]
[1767548028063,0.03282534,91363.0,91360.0,0.04715642]
[1767548028224,0.03282534,91363.0,91360.0,0.04615742]
[1767548028423,0.01094546,91362.0,91358.0,0.04615742]
[1767548028623,0.01094558,91361.0,91356.0,0.06567708]
[1767548028939,0.06567287,91362.0,91357.0,0.01094606]
[1767548029510,0.06567365,91361.0,91356.0,0.06567708]
[1767548029710,0.06567365,91361.0,91356.0,0.01094618]
[1767548030012,0.06567365,91361.0,91353.0,0.26508792]
[1767548030013,0.01094594,91358.0,91353.0,0.04615742]
[1767548030183,0.01094594,91358.0,91354.0,0.01094642]
[1767548030381,0.06567547,91359.0,91354.0,0.01094642]
[1767548030604,0.06567547,91359.0,91354.0,0.0656785]
[1767548031239,0.06567547,91359.0,91355.0,0.0109463]
[1767548031658,0.01094594,91358.0,91353.0,0.11183621]
[1767548031809,0.06567568,91358.0,91353.0,0.11183621]
[1767548032021,0.01094594,91358.0,91354.0,0.01094642]
[1767548032454,0.06567547,91359.0,91354.0,0.06567854]
[1767548033063,0.06567547,91359.0,91354.0,0.06567852]
[1767548033563,0.06567364,91361.0,91354.0,0.06567852]
[1767548033738,0.01094594,91358.0,91354.0,0.01094642]
[1767548033892,0.06567501,91359.0,91354.0,0.01094642]
[1767548033893,0.06567501,91359.0,91354.0,0.06563393]
[1767548034098,0.06567429,91360.0,91355.0,0.06567784]
[1767548034332,0.06567436,91360.0,91356.0,0.04615742]
[1767548034730,0.06567355,91361.0,91356.0,0.11183403]
[1767548034930,0.06567355,91361.0,91357.0,0.01094606]
[1767548035606,0.01094558,91361.0,91357.0,0.01094606]
[1767548036357,0.06567294,91362.0,91357.0,0.01094606]
[1767548036526,0.08755318,91363.0,91358.0,0.01094594]
[1767548036750,0.08755318,91363.0,91358.0,0.05710336]
[1767548037136,0.08755318,91363.0,91358.0,0.11183287]
[1767548037835,0.06567308,91362.0,91356.0,0.06567708]
[1767548037995,0.01094546,91362.0,91355.0,0.06567771]
[1767548038385,0.01094558,91361.0,91356.0,0.01094618]
[1767548038591,0.06567396,91361.0,91356.0,0.06567705]
[1767548038993,0.0109457,91360.0,91355.0,0.0109463]
[1767548039599,0.01094582,91359.0,91355.0,0.0109463]
[1767548039803,0.01094582,91359.0,91354.0,0.01563308]
[1767548039804,0.04539552,91358.0,91354.0,0.01563308]
[1767548039987,0.04539552,91358.0,91354.0,0.06567831]
[1767548040185,0.04539552,91358.0,91355.0,0.0109463]
[1767548040510,0.05634146,91358.0,91354.0,0.01094642]
[1767548040704,0.00788027,91356.0,91353.0,0.06567908]
[1767548040914,0.00788027,91351.0,91346.0,0.05473672]
[1767548041117,0.0062438,91351.0,91348.0,0.01094714]
[1767548041297,0.005568,91352.0,91346.0,0.01094738]
[1767548041481,0.01094678,91351.0,91348.0,0.04944976]
[1767548041695,0.05473445,91352.0,91347.0,0.01094726]
[1767548041882,0.01094678,91351.0,91346.0,0.01094738]
[1767548042083,0.05473445,91352.0,91346.0,0.0537324]
[1767548042084,0.02602778,91352.0,91346.0,0.0537324]
[1767548042337,0.01094702,91349.0,91346.0,0.0537324]
[1767548042541,0.05473633,91347.0,91346.0,0.04944976]
[1767548042711,0.06568359,91347.0,91342.0,0.06039762]
[1767548042918,0.01094726,91347.0,91342.0,0.11513694]
[1767548043262,0.06568315,91348.0,91343.0,0.11513605]
[1767548043393,0.01094702,91349.0,91345.0,0.04944976]
[1767548043597,0.0109469,91350.0,91349.0,0.000999]
[1767548043841,0.06568143,91350.0,91349.0,0.000999]
[1767548044083,0.0109469,91350.0,91346.0,0.06039714]
[1767548044284,0.0109469,91350.0,91346.0,0.04944976]
[1767548044489,0.01094678,91351.0,91347.0,0.04944976]
[1767548044626,0.02502878,91350.0,91347.0,0.04944976]
[1767548045667,0.03597568,91350.0,91347.0,0.04944976]
[1767548045847,0.02502878,91350.0,91347.0,0.04944976]
[1767548046050,0.02502878,91350.0,91347.0,0.06039702]
[1767548046431,0.02502878,91350.0,91340.0,0.04944976]
[1767548046432,0.0109475,91345.0,91340.0,0.04944976]
[1767548046631,0.0109475,91345.0,91341.0,0.04944976]
[1767548046632,0.01094762,91344.0,91341.0,0.04944976]
[1767548046837,0.05473933,91342.0,91341.0,0.04944976]
[1767548047495,0.05473912,91343.0,91341.0,0.04944976]
[1767548047717,0.05473933,91342.0,91341.0,0.04944976]
[1767548047923,0.01094846,91337.0,91333.0,0.02188]
[1767548048131,0.0021973,91337.0,91334.0,0.01094882]
[1767548048284,0.06569046,91339.0,91334.0,0.06569272]
[1767548048285,0.01315653,91339.0,91334.0,0.06569272]
[1767548048490,0.06568875,91340.0,91334.0,0.06569272]
[1767548048692,0.0469356,91340.0,91337.0,0.00062003]
[1767548048895,0.0578837,91340.0,91337.0,0.00062003]
[1767548049304,0.05474114,91339.0,91337.0,0.00062003]
[1767548049500,0.0578837,91340.0,91337.0,0.00062003]
[1767548053107,0.01094786,91342.0,91340.0,0.000999]
[1767548053311,0.0109481,91340.0,91338.0,0.04944976]
[1767548053915,0.05474112,91339.0,91338.0,0.04944976]
[1767548054792,0.01094774,91343.0,91338.0,0.04944976]
[1767548055194,0.0656885,91341.0,91338.0,0.04944976]
[1767548055506,0.05474109,91340.0,91338.0,0.04944976]
[1767548056929,0.05474109,91340.0,91338.0,0.0494054]
[1767548057329,0.05474112,91339.0,91338.0,0.0494054]
[1767548057538,0.05474109,91340.0,91338.0,0.0494054]
[1767548059216,0.01094798,91341.0,91340.0,0.05044876]
[1767548059742,0.06568807,91341.0,91340.0,0.04944976]
[1767548066639,0.06568807,91341.0,91340.0,0.04952463]
[1767548067725,0.05473993,91341.0,91340.0,0.04952463]
[1767548069925,0.05473933,91342.0,91340.0,0.04952463]
[1767548070519,0.05473993,91341.0,91340.0,0.04952463]
[1767548070736,0.05374093,91341.0,91340.0,0.04950699]
[1767548070946,0.05473933,91342.0,91340.0,0.04950699]
[1767548072203,0.01094774,91343.0,91340.0,0.04950699]
[1767548072204,0.06568667,91343.0,91340.0,0.04950699]
[1767548072438,0.05473993,91341.0,91340.0,0.04950699]
[1767548072686,0.05464937,91341.0,91340.0,0.04950699]
[1767548075095,0.06568691,91343.0,91340.0,0.04950699]
[1767548075378,0.0547383,91344.0,91343.0,0.04966683]
[1767548075865,0.01094762,91344.0,91343.0,0.04966683]
[1767548076284,0.06568549,91345.0,91343.0,0.04966683]
[1767548076680,0.05473813,91344.0,91343.0,0.04966683]
[1767548079492,0.06568549,91345.0,91343.0,0.04966683]
[1767548081002,0.06568549,91345.0,91340.0,0.01102297]
[1767548081003,0.01094762,91344.0,91340.0,0.04966683]
[1767548081559,0.0109475,91345.0,91341.0,0.04966683]
[1767548081790,0.01094762,91344.0,91341.0,0.04966683]
[1767548082192,0.06568578,91344.0,91341.0,0.04966683]
[1767548086766,0.05473892,91343.0,91341.0,0.04966683]
[1767548087399,0.05473933,91342.0,91341.0,0.04866783]
[1767548087607,0.05464877,91342.0,91341.0,0.04866783]
[1767548088034,0.06568797,91341.0,91337.0,0.04966683]
[1767548088925,0.06559663,91342.0,91338.0,0.04966683]
[1767548089260,0.01094786,91342.0,91338.0,0.06061517]
[1767548089566,0.06568735,91342.0,91338.0,0.04966683]
[1767548089777,0.06568748,91343.0,91339.0,0.04966683]
[1767548090175,0.01094786,91342.0,91339.0,0.04966683]
[1767548090373,0.06568688,91343.0,91339.0,0.04966683]
[1767548090929,0.06568688,91343.0,91339.0,0.06061505]
[1767548091151,0.01094774,91343.0,91339.0,0.06061505]
[1767548092434,0.06568577,91344.0,91339.0,0.11535606]
[1767548092744,0.01094774,91343.0,91339.0,0.06061505]
[1767548092963,0.06568577,91344.0,91339.0,0.11535599]
[1767548093111,0.06568577,91344.0,91340.0,0.04966683]
[1767548093504,0.06568649,91343.0,91340.0,0.04966683]
[1767548094546,0.0656852,91345.0,91340.0,0.11535499]
[1767548095786,0.01094774,91343.0,91340.0,0.04966683]
[1767548095986,0.06568618,91344.0,91340.0,0.04966683]
[1767548096516,0.0656852,91345.0,91340.0,0.11535502]
[1767548096741,0.05473862,91344.0,91340.0,0.04966683]
[1767548097173,0.01094774,91343.0,91340.0,0.04966683]
[1767548097406,0.06568624,91344.0,91343.0,0.000999]
[1767548097630,0.06568624,91344.0,91340.0,0.04966683]
[1767548097872,0.06568624,91344.0,91340.0,0.06061493]
[1767548098283,0.01094762,91344.0,91340.0,0.11535545]
[1767548099124,0.06568503,91345.0,91340.0,0.11535545]
[1767548099332,0.07661589,91348.0,91343.0,0.04966683]
[1767548099446,0.05473693,91346.0,91345.0,0.04966683]
[1767548099644,0.05473685,91347.0,91345.0,0.04966683]
[1767548100643,0.08756393,91348.0,91345.0,0.04966683]
[1767548101209,0.05473638,91347.0,91345.0,0.04966683]
[1767548101416,0.08756393,91348.0,91345.0,0.04966683]
[1767548101814,0.05473674,91347.0,91345.0,0.04966683]
[1767548102211,0.08756295,91348.0,91345.0,0.04966683]
[1767548102435,0.02188,91348.0,91346.0,0.04901223]
[1767548102672,0.0109457,91360.0,91348.0,0.04901223]
[1767548102877,0.02188,91357.0,91353.0,0.1146913]
[1767548103260,0.03282606,91357.0,91353.0,0.04901223]
[1767548103464,0.02188,91357.0,91354.0,0.04901223]
[1767548103666,0.02188,91357.0,91352.0,0.01094666]
[1767548103667,0.03282546,91362.0,91358.0,0.04901223]
[1767548103856,0.06567354,91361.0,91356.0,0.06567657]
[1767548104057,0.08755281,91362.0,91357.0,0.01094606]
[1767548104258,0.0109457,91360.0,91356.0,0.06567657]
[1767548104455,0.06567398,91361.0,91356.0,0.06567712]
[1767548104677,0.0109457,91360.0,91356.0,0.06567712]
[1767548104931,0.0109457,91360.0,91356.0,0.01094618]
[1767548105964,0.06567398,91361.0,91356.0,0.06567698]
[1767548106362,0.06567398,91361.0,91356.0,0.11468921]
[1767548106568,0.06567426,91360.0,91356.0,0.04901223]
[1767548106903,0.0109457,91360.0,91356.0,0.05995841]
[1767548107105,0.02188,91362.0,91360.0,0.000999]
[1767548107376,0.02188,91362.0,91358.0,0.06567546]
[1767548107560,0.02188,91362.0,91358.0,0.11468769]
[1767548107700,0.03282546,91362.0,91358.0,0.05995817]
[1767548108104,0.03282546,91362.0,91358.0,0.04901223]
[1767548108351,0.08760813,91362.0,91358.0,0.04901223]
[1767548108585,0.0656738,91361.0,91358.0,0.04901223]
[1767548108891,0.01094558,91361.0,91358.0,0.04901223]
[1767548110543,0.06567384,91361.0,91358.0,0.04901223]
[1767548110762,0.01094558,91361.0,91358.0,0.04901223]
[1767548111161,0.08760813,91362.0,91358.0,0.04901223]
[1767548111560,0.08760813,91362.0,91357.0,0.01094606]
[1767548111561,0.06567353,91361.0,91357.0,0.01094606]
[1767548111763,0.0656743,91360.0,91356.0,0.05995841]
[1767548111966,0.0109457,91360.0,91356.0,0.05995841]
[1767548112170,0.01094558,91361.0,91357.0,0.05995829]
[1767548112599,0.08760798,91362.0,91357.0,0.11468836]
[1767548112768,0.06567362,91361.0,91357.0,0.04901223]
[1767548112972,0.0109457,91360.0,91357.0,0.04901223]
[1767548113402,0.06567362,91361.0,91357.0,0.04901223]
[1767548113839,0.0656743,91360.0,91357.0,0.04901223]
[1767548114343,0.0109457,91360.0,91357.0,0.04901223]
[1767548114766,0.01094582,91359.0,91354.0,0.01094642]
[1767548114964,0.06567541,91359.0,91354.0,0.06567844]
[1767548115181,0.01094558,91361.0,91354.0,0.01094642]
[1767548115358,0.065675,91359.0,91354.0,0.01094642]
[1767548115939,0.01094582,91359.0,91355.0,0.0109463]
[1767548116473,0.01094558,91361.0,91356.0,0.01094618]
[1767548116611,0.01094558,91361.0,91354.0,0.06567843]
[1767548116612,0.06467604,91359.0,91354.0,0.06567843]
[1767548117224,0.0109457,91360.0,91355.0,0.0109463]
[1767548118110,0.06567443,91360.0,91356.0,0.01094618]
[1767548118310,0.06567355,91361.0,91356.0,0.06567698]
[1767548118510,0.06567355,91361.0,91357.0,0.01094606]
[1767548119242,0.01094558,91361.0,91357.0,0.06567629]
[1767548119365,0.06567378,91361.0,91356.0,0.06567698]
[1767548120138,0.0109457,91360.0,91356.0,0.06567663]
[1767548120683,0.0109457,91360.0,91356.0,0.06567704]
[1767548120871,0.06567441,91360.0,91356.0,0.01094618]
[1767548121080,0.06567441,91360.0,91355.0,0.06567779]
[1767548121482,0.03288063,91362.0,91356.0,0.01094618]
[1767548121681,0.01094558,91361.0,91356.0,0.06563238]
[1767548122029,0.08760799,91362.0,91357.0,0.06567612]
[1767548122230,0.01094558,91361.0,91357.0,0.06567612]
[1767548122559,0.02193517,91362.0,91359.0,0.01094582]
[1767548122765,0.02193517,91362.0,91359.0,0.06567451]
[1767548123312,0.02193517,91362.0,91360.0,0.05472854]
[1767548123827,0.00010246,91362.0,91361.0,0.05472794]
[1767548124413,0.0001534,91364.0,91361.0,0.05472794]
[1767548124563,0.00019673,91364.0,91363.0,0.10373897]
[1767548124767,0.0364967,91369.0,91367.0,0.0547241]
[1767548125253,0.04609155,91372.0,91370.0,0.05472255]
[1767548125385,1e-08,91372.0,91371.0,0.05472195]
[1767548126390,0.01270129,91378.0,91377.0,0.05471836]
[1767548126614,0.01274463,91378.0,91377.0,0.05471836]
[1767548127411,0.01274463,91378.0,91375.0,0.06566287]
[1767548127771,0.01274463,91378.0,91376.0,0.05471886]
[1767548128558,4.334e-05,91378.0,91376.0,0.05471886]
[1767548128763,0.06565927,91381.0,91376.0,0.06566265]
[1767548128979,0.06561388,91381.0,91376.0,0.11467488]
[1767548129459,0.08753855,91382.0,91377.0,0.06566198]
[1767548129660,0.08753855,91382.0,91377.0,0.11467421]
[1767548130098,0.08753855,91382.0,91377.0,0.0599559]
[1767548130304,0.06565932,91381.0,91377.0,0.04901223]
[1767548130964,0.01094331,91380.0,91377.0,0.04801323]
[1767548131169,0.05471776,91378.0,91377.0,0.04801323]
[1767548131383,0.05471719,91379.0,91377.0,0.04801323]
[1767548131586,0.05471776,91378.0,91377.0,0.04801323]
[1767548131787,0.05471719,91379.0,91377.0,0.04801323]
[1767548131989,0.06566212,91377.0,91373.0,0.04531527]
[1767548132216,0.01094379,91376.0,91373.0,0.04531527]
[1767548132626,0.01094367,91377.0,91373.0,0.04531527]
[1767548132829,0.01094367,91377.0,91369.0,0.01160089]
[1767548132830,0.0656635,91375.0,91371.0,0.04531527]
[1767548133032,0.01094379,91376.0,91371.0,0.05625966]
[1767548133237,0.01094379,91376.0,91371.0,0.11098151]
[1767548133655,0.01094379,91376.0,91372.0,0.01094427]
[1767548133891,0.01094367,91377.0,91373.0,0.01094415]
[1767548134727,0.01094343,91379.0,91374.0,0.01094403]
[1767548134940,0.06566119,91379.0,91374.0,0.06566412]
[1767548135146,0.01094343,91379.0,91375.0,0.01094391]
[1767548135351,0.06565988,91380.0,91375.0,0.06566342]
[1767548135558,0.06557114,91380.0,91375.0,0.06566342]
[1767548135742,0.01370029,91378.0,91374.0,0.06290779]
[1767548136193,0.01370029,91378.0,91374.0,0.00818765]
[1767548136335,0.01370029,91378.0,91374.0,0.06290763]
[1767548136681,0.01066085,91378.0,91373.0,0.0656649]
[1767548137816,0.01066085,91378.0,91374.0,0.0591271]
[1767548138427,0.06565997,91380.0,91376.0,0.04818307]
[1767548138630,0.01094343,91379.0,91376.0,0.04818307]
[1767548139425,0.06566099,91379.0,91376.0,0.04818307]
[1767548139554,0.01094319,91381.0,91376.0,0.04818307]
[1767548139755,0.05471657,91380.0,91376.0,0.04818307]
[1767548140310,0.03282307,91382.0,91376.0,0.04818307]
[1767548140468,0.0547166,91380.0,91378.0,0.04818307]
[1767548140653,0.05471716,91379.0,91378.0,0.04818307]
[1767548141266,0.0547166,91380.0,91378.0,0.04818307]
[1767548141922,0.08753898,91382.0,91380.0,0.04918207]
[1767548141923,0.02188,91382.0,91380.0,0.04918207]
[1767548142152,0.02188,91382.0,91380.0,0.04818307]
[1767548142706,0.02188,91382.0,91379.0,0.06566007]
[1767548142929,0.02188,91382.0,91379.0,0.01094343]
[1767548143132,0.02188,91382.0,91378.0,0.113844]
[1767548143357,0.020881,91382.0,91381.0,0.10289903]
[1767548143549,0.0001534,91383.0,91382.0,0.04818307]
[1767548143972,0.0001534,91383.0,91380.0,0.11384294]
[1767548144177,0.0001534,91383.0,91382.0,0.04818307]
[1767548144538,0.0001534,91383.0,91381.0,0.05471573]
[1767548144759,0.0001534,91383.0,91381.0,0.1028988]
[1767548145107,0.0001534,91383.0,91382.0,0.04818307]
[1767548145446,0.0001534,91383.0,91382.0,0.10289844]
[1767548145627,0.000999,91382.0,91381.0,0.05471573]
[1767548145832,0.0001534,91383.0,91380.0,0.11384287]
[1767548146107,0.0001534,91383.0,91381.0,0.04818307]
[1767548146939,0.0001534,91383.0,91382.0,0.04718407]
[1767548147340,0.0001534,91383.0,91380.0,0.05912638]
[1767548147964,0.0001534,91383.0,91380.0,0.11384254]
[1767548148463,0.0001534,91383.0,91381.0,0.04818307]
[1767548148663,0.0001534,91383.0,91380.0,0.06565947]
[1767548148864,0.0001534,91383.0,91380.0,0.11384254]
[1767548149065,0.0001534,91383.0,91380.0,0.04818307]
[1767548149266,0.0001534,91383.0,91380.0,0.11384294]
[1767548149735,0.0001534,91383.0,91380.0,0.06561551]
[1767548149887,0.00104336,91382.0,91380.0,0.06561551]
[1767548150097,0.0001534,91383.0,91380.0,0.06561551]
[1767548150284,0.0001534,91383.0,91381.0,0.05471594]
[1767548150948,0.0001534,91383.0,91379.0,0.01094343]
[1767548151151,0.0001534,91383.0,91380.0,0.01094331]
[1767548152328,0.0001534,91383.0,91379.0,0.06566014]
[1767548152531,0.0001534,91383.0,91380.0,0.0656598]
[1767548152687,0.0001534,91383.0,91380.0,0.01094331]
[1767548152868,0.0001534,91383.0,91379.0,0.06566014]